fUSD/lending_fUSD_20250602
["ID","MTS","AMOUNT","RATE_DAILY","PERIOD"]
[363863551,1748904656221,-500.0,0.00039889,6]
[363863552,1748904656231,-500.0,0.00039889,120]
[363863553,1748904656240,-500.0,0.00039889,2]
[363863554,1748904656250,-3328.1,0.00039889,120]
[363863555,1748904656259,-500.0,0.00039889,2]
[363863556,1748904656269,-207229.9475,0.0003989,2]
[363863557,1748904656278,-5000.0,0.0003989,2]
[363863558,1748904656288,-747.80285252,0.000399,15]
[363863559,1748904656298,-15271.13945801,0.000399,30]
[363863560,1748904656307,-19999.999999,0.000399,30]
[363863561,1748904656317,-150.36902539,0.000399,2]
[363863562,1748904656326,-260.2497,0.000399,10]
[363863563,1748904656337,-1400.0,0.000399,14]
[363863564,1748904656346,-4000.0,0.00039911,8]
[363863565,1748904656355,-150.0,0.00039962,7]
[363863566,1748904656365,-500.0,0.00039971,6]
[363863567,1748904656375,-500.0,0.00039971,120]
[363863568,1748904656384,-1000.0,0.00039972,2]
[363863569,1748904656394,-1000.0,0.00039972,2]
[363863570,1748904656403,-1512.9864544,0.00039972,2]
[363863571,1748904656413,-23822.4004406,0.00039972,2]
[363863572,1748904656422,-864.4698138,0.00039972,2]
[363863573,1748904656432,-2664.6737578,0.00039972,2]
[363863574,1748904656442,-8263.0525658,0.00039972,2]
[363863575,1748904656451,-4106.2874678,0.00039972,2]
[363863576,1748904656460,-153.04225253,0.00039973,5]
[363863577,1748904656469,-500.0,0.00039973,5]
[363863578,1748904656479,-156.03958481,0.00039973,5]
[363863579,1748904656488,-500.67172156,0.00039973,5]
[363863580,1748904656498,-301.0,0.00039976,5]
[363863581,1748904656508,-1193.0,0.0003998,7]
[363863582,1748904656518,-1193.0,0.0003998,7]
[363863583,1748904656527,-1193.0,0.0003998,7]
[363863584,1748904656536,-1193.0,0.0003998,7]
[363863585,1748904656547,-1262.43,0.00039986,5]
[363863586,1748904656556,-426.06,0.00039986,120]
[363863587,1748904656566,-3976.4958064,0.00039986,2]
[363863588,1748904656577,-1264.88,0.00039986,5]
[363863589,1748904656587,-2987.0,0.00039987,48]
[363863590,1748904656597,-500.0,0.00039989,6]
[363863591,1748904656609,-500.0,0.00039989,6]
[363863592,1748904656620,-500.0,0.00039989,6]
[363863593,1748904656629,-500.0,0.00039989,2]
[363863594,1748904656638,-500.0,0.00039989,2]
[363863595,1748904656648,-3328.1,0.00039989,120]
[363863596,1748904656657,-3328.1,0.00039989,120]
[363863597,1748904656667,-3328.1,0.00039989,120]
[363863598,1748904656678,-3328.1,0.00039989,120]
[363863599,1748904656688,-3328.1,0.00039989,120]
[363863600,1748904656697,-403.6162782,0.00039989,2]
[363863601,1748904656707,-33945.22760751,0.00039989,2]
[363863602,1748904656716,-385.2779236,0.0003999,2]
[363863603,1748904656726,-9999.9,0.0003999,12]
[363863604,1748904656736,-151.0,0.0003999,14]
[363863605,1748904656746,-2100.84,0.00039994,120]
[363863606,1748904656756,-672.77117613,0.00039996,120]
[363863607,1748904656766,-500.0,0.00039999,7]
[363863608,1748904656775,-372.74103007,0.00039999,31]
[363863609,1748904656785,-216.72247591,0.00039999,15]
[363863610,1748904656795,-500.0,0.00039999,31]
[363863611,1748904656805,-200.0143619,0.00039999,7]
[363863612,1748904656815,-500.0,0.00039999,7]
[363863613,1748904656826,-500.0,0.00039999,2]
[363863614,1748904656836,-382.58806612,0.00039999,31]
[363863615,1748904656845,-500.0,0.00039999,2]
[363863616,1748904656855,-566.3742904,0.00039999,7]
[363863617,1748904656864,-500.0,0.00039999,2]
[363863618,1748904656874,-543.09265895,0.00039999,2]
[363863619,1748904656883,-500.0,0.00039999,2]
[363863620,1748904656894,-500.0,0.00039999,2]
[363863621,1748904656903,-500.0,0.00039999,31]
[363863622,1748904656913,-500.0,0.00039999,31]
[363863623,1748904656922,-636.2839748,0.00039999,31]
[363863624,1748904656932,-201.57057131,0.00039999,31]
[363863625,1748904656941,-500.0,0.00039999,15]
[363863626,1748904656951,-315.75803798,0.00039999,31]
[363863627,1748904656960,-500.0,0.00039999,31]
[363863628,1748904656970,-500.0,0.00039999,31]
[363863629,1748904656979,-164.56834785,0.00039999,15]
[363863630,1748904656989,-500.0,0.00039999,31]
[363863631,1748904656998,-500.0,0.00039999,31]
[363863632,1748904657008,-371.17416008,0.00039999,31]
[363863633,1748904657018,-167.65804759,0.00039999,31]
[363863634,1748904657028,-3328.1,0.00039999,120]
[363863635,1748904657038,-3328.1,0.00039999,120]
[363863636,1748904657047,-3328.1,0.00039999,120]
[363863637,1748904657057,-3328.1,0.00039999,120]
[363863638,1748904657067,-50000.0,0.0004,40]
[363863639,1748904657077,-50000.0,0.0004,30]
[363863640,1748904657086,-213.5315075,0.0004,2]
[363863641,1748904657096,-1404.94596686,0.0004,2]
[363863642,1748904657105,-1028.97,0.0004,9]
[363863643,1748904657115,-3334.95775166,0.0004,12]
[363863644,1748904657124,-410.32419158,0.0004,7]
[363863645,1748904657134,-593.49170483,0.0004,2]
[363863646,1748904657143,-37208.98821612,0.0004,2]
[363863647,1748904657152,-41427.87911829,0.0004,5]
[363863648,1748904657161,-16710.96225081,0.0004,2]
[363863649,1748904657171,-950.26196808,0.0004,7]
[363863650,1748904657182,-380.9940753,0.0004,2]
[363863651,1748904657192,-5097.13897362,0.0004,2]
[363863652,1748904657201,-1240.47498774,0.0004,10]
[363863653,1748904657213,-15750.489313,0.0004,5]
[363863654,1748904657222,-8822.0,0.0004,14]
[363863655,1748904657232,-267.0,0.0004,20]
[363863656,1748904657241,-3842.27018765,0.0004,30]
[363863657,1748904657252,-5208.40042152,0.0004,30]
[363863658,1748904657262,-229.56926516,0.0004,30]
[363863659,1748904659336,-114.22033335,0.0004,30]
[363863660,1748904659346,-303.34911017,0.0004,30]
[363863661,1748904659356,-5000.0,0.0004,36]
[363863662,1748904659365,-1000.0,0.0004,45]
[363863663,1748904659375,-4652.0,0.0004,30]
[363863664,1748904659385,-1000.0,0.0004,2]
[363863665,1748904659396,-1727.9781026,0.0004,30]
[363863666,1748904659406,-500.0,0.0004,2]
[363863667,1748904659415,-5000.0,0.0004,2]
[363863668,1748904659425,-89437.38436354,0.0004,30]
[363863669,1748904659436,-150.0,0.0004,2]
[363863670,1748904659445,-750.0,0.0004,30]
[363863671,1748904659454,-500.0,0.0004,2]
[363863672,1748904659463,-7509.0,0.0004,8]
[363863673,1748904659473,-121744.4326209,0.0004,30]
[363863674,1748904660250,-0.00970625,0.0004,30]
[363863675,1748904660262,-1064.41262761,0.0004,30]
[363863676,1748904660361,-41771.53680274,0.0004,30]
[363863677,1748904660373,-9380.7472,0.0004,30]
[363863678,1748904660445,-236944.78060674,0.0004,30]
[363863679,1748904660454,-15351.83688278,0.0004,30]
[363863680,1748904660464,-3867.65022644,0.0004,30]
[363863681,1748904660474,-94431.96254802,0.0004,30]
[363863682,1748904660483,-4018.7364585,0.0004,45]
[363863683,1748904660493,-2531.66055484,0.0004,90]
[363863684,1748904660503,-6721.21711776,0.0004,30]
[363863685,1748904660512,-97701.0,0.0004,120]
[363863686,1748904660522,-23275.0,0.0004,120]
[363863687,1748904660532,-763.93849938,0.0004,120]
[363863688,1748904660541,-1175.54833657,0.0004,120]
[363863689,1748904660550,-984.46248556,0.0004,120]
[363863690,1748904660560,-185.18878927,0.0004,120]
[363863691,1748904660570,-679.69998644,0.0004,120]
[363863692,1748904660581,-3332.61930046,0.0004,120]
[363863693,1748904660590,-151.0,0.0004,14]
[363863694,1748904660600,-151.0,0.0004,14]
[363863695,1748904660611,-1000.00063688,0.0004,90]
[363863696,1748904660621,-203.236136,0.0004,14]
[363863697,1748904660631,-203.236136,0.0004,14]
[363863698,1748904660641,-203.236136,0.0004,14]
[363863699,1748904660650,-203.236136,0.0004,14]
[363863700,1748904660659,-151.0,0.0004,14]
[363863701,1748904660669,-151.0,0.0004,14]
[363863702,1748904660678,-151.0,0.0004,14]
[363863703,1748904660688,-151.0,0.0004,14]
[363863704,1748904660697,-153.680147,0.0004,14]
[363863705,1748904660707,-151.0,0.0004,14]
[363863706,1748904660716,-151.0,0.0004,14]
[363863707,1748904660726,-2694.19,0.0004,14]
[363863708,1748904660735,-369.68603,0.0004,14]
[363863709,1748904660744,-369.68603,0.0004,14]
[363863710,1748904660753,-369.68603,0.0004,14]
[363863711,1748904660764,-369.68603,0.0004,14]
[363863712,1748904660774,-151.0,0.0004,14]
[363863713,1748904660784,-161.465619,0.0004,14]
[363863714,1748904660794,-151.0,0.0004,14]
[363863715,1748904660803,-151.0,0.0004,14]
[363863716,1748904660812,-151.0,0.0004,14]
[363863717,1748904660823,-151.0,0.0004,14]
[363863718,1748904660838,-190.0,0.0004,120]
[363863719,1748904660847,-153.65,0.0004,30]
[363863720,1748904660857,-3000.0,0.0004,120]
[363863721,1748904660866,-3000.0,0.0004,120]
[363863722,1748904660876,-3000.0,0.0004,120]
[363863723,1748904660886,-460.0,0.0004,6]
[363863724,1748904660895,-260.0,0.0004,6]
[363863725,1748904660905,-790.55,0.0004,6]
[363863726,1748904660914,-1040.53,0.0004,6]
[363863727,1748904660923,-719.75,0.0004,6]
[363863728,1748904660933,-460.0,0.0004,6]
[363863729,1748904660943,-460.0,0.0004,6]
[363863730,1748904660952,-460.0,0.0004,6]
[363863731,1748904660962,-460.0,0.0004,2]
[363863732,1748904660971,-722.99,0.0004,6]
[363863733,1748904660980,-757.63,0.0004,6]
[363863734,1748904660990,-836.91,0.0004,6]
[363863735,1748904660999,-758.64,0.0004,6]
[363863736,1748904661009,-608.39862933,0.0004,6]
[363863737,1748904661018,-460.0,0.0004,6]
[363863738,1748904661027,-507.42,0.0004,6]
[363863739,1748904661036,-1127.48,0.0004,6]
[363863740,1748904661046,-480.79,0.0004,6]
[363863741,1748904661055,-1170.16,0.0004,6]
[363863742,1748904661064,-460.0,0.0004,6]
[363863743,1748904661073,-538.2,0.0004,6]
[363863744,1748904661087,-460.0,0.0004,6]
[363863745,1748904661096,-460.0,0.0004,6]
[363863746,1748904661105,-460.0,0.0004,6]
[363863747,1748904661115,-558.53900447,0.0004,6]
[363863748,1748904661124,-460.0,0.0004,6]
[363863749,1748904661134,-1044.63,0.0004,6]
[363863750,1748904661143,-460.0,0.0004,6]
[363863751,1748904661153,-460.0,0.0004,6]
[363863752,1748904661162,-460.0,0.0004,6]
[363863753,1748904661172,-460.0,0.0004,6]
[363863754,1748904661182,-460.0,0.0004,6]
[363863755,1748904661191,-460.0,0.0004,6]
[363863756,1748904661200,-762.85,0.0004,6]
[363863757,1748904661210,-460.0,0.0004,6]
[363863758,1748904661221,-1190.35,0.0004,6]
[363863759,1748904661231,-2169.71,0.0004,6]
[363863760,1748904661241,-460.0,0.0004,6]
[363863761,1748904661251,-460.0,0.0004,6]
[363863762,1748904661261,-460.0,0.0004,6]
[363863763,1748904661270,-837.97,0.0004,6]
[363863764,1748904661280,-460.0,0.0004,6]
[363863765,1748904661290,-460.0,0.0004,6]
[363863766,1748904661300,-460.0,0.0004,6]
[363863767,1748904661310,-460.0,0.0004,6]
[363863768,1748904661319,-460.0,0.0004,6]
[363863769,1748904661328,-479.44,0.0004,6]
[363863770,1748904661339,-460.0,0.0004,6]
[363863771,1748904661349,-460.0,0.0004,6]
[363863772,1748904661358,-1467.29,0.0004,6]
[363863773,1748904661368,-518.59,0.0004,6]
[363863774,1748904661377,-460.0,0.0004,6]
[363863775,1748904661387,-496.4,0.0004,6]
[363863776,1748904661396,-460.0,0.0004,6]
[363863777,1748904661406,-460.0,0.0004,6]
[363863778,1748904661415,-460.0,0.0004,6]
[363863779,1748904661425,-493.42,0.0004,6]
[363863780,1748904661435,-605.92,0.0004,6]
[363863781,1748904661444,-460.0,0.0004,6]
[363863782,1748904661454,-460.0,0.0004,6]
[363863783,1748904661465,-460.0,0.0004,6]
[363863784,1748904661475,-299.64619016,0.0004,6]
[363863785,1748904661486,-513.81,0.0004,6]
[363863786,1748904661498,-460.0,0.0004,6]
[363863787,1748904661509,-598.08,0.0004,6]
[363863788,1748904661519,-460.0,0.0004,6]
[363863789,1748904661529,-460.0,0.0004,6]
[363863790,1748904661540,-183.93634971,0.0004,6]
[363863791,1748904661549,-733.24,0.0004,6]
[363863792,1748904661558,-801.08,0.0004,6]
[363863793,1748904661568,-709.69,0.0004,6]
[363863794,1748904661579,-460.0,0.0004,6]
[363863795,1748904661588,-460.0,0.0004,6]
[363863796,1748904661598,-517.7,0.0004,6]
[363863797,1748904661609,-1337.37,0.0004,6]
[363863798,1748904661624,-460.0,0.0004,6]
[363863799,1748904661634,-460.0,0.0004,6]
[363863800,1748904661643,-472.05,0.0004,6]
[363863801,1748904661653,-460.0,0.0004,6]
[363863802,1748904661665,-460.0,0.0004,6]
[363863803,1748904661675,-460.0,0.0004,6]
[363863804,1748904661684,-1511.1,0.0004,6]
[363863805,1748904661694,-180.0,0.0004,6]
[363863806,1748904661704,-712.56,0.0004,6]
[363863807,1748904661715,-460.0,0.0004,6]
[363863808,1748904661724,-460.0,0.0004,6]
[363863809,1748904661734,-597.44,0.0004,6]
[363863810,1748904661744,-460.0,0.0004,6]
[363863811,1748904661754,-460.0,0.0004,6]
[363863812,1748904661764,-460.0,0.0004,6]
[363863813,1748904661774,-960.28,0.0004,6]
[363863814,1748904661784,-460.0,0.0004,6]
[363863815,1748904661793,-460.0,0.0004,6]
[363863816,1748904661803,-460.0,0.0004,6]
[363863817,1748904661813,-460.0,0.0004,6]
[363863818,1748904661823,-180.0,0.0004,6]
[363863819,1748904661835,-460.0,0.0004,6]
[363863820,1748904661845,-151.0,0.0004,14]
[363863821,1748904661855,-460.0,0.0004,6]
[363863822,1748904661864,-607.98542142,0.0004,6]
[363863823,1748904661874,-753.84,0.0004,6]
[363863824,1748904661883,-460.0,0.0004,6]
[363863825,1748904661893,-460.0,0.0004,6]
[363863826,1748904661902,-460.0,0.0004,6]
[363863827,1748904661912,-1247.64,0.0004,6]
[363863828,1748904661921,-460.0,0.0004,6]
[363863829,1748904661931,-460.0,0.0004,6]
[363863830,1748904661941,-519.61,0.0004,6]
[363863831,1748904661950,-485.01,0.0004,6]
[363863832,1748904661960,-791.69,0.0004,6]
[363863833,1748904661969,-460.0,0.0004,6]
[363863834,1748904661979,-765.94,0.0004,6]
[363863835,1748904661990,-460.0,0.0004,6]
[363863836,1748904662000,-151.0,0.0004,14]
[363863837,1748904662010,-151.0,0.0004,14]
[363863838,1748904662020,-711.627085,0.0004,6]
[363863839,1748904662030,-221.745722,0.0004,14]
[363863840,1748904662040,-221.745722,0.0004,14]
[363863841,1748904662051,-151.0,0.0004,14]
[363863842,1748904662061,-5000.0,0.0004,30]
[363863843,1748904662070,-150.0,0.00040003,2]
[363863844,1748904662081,-200.0,0.00040014,7]
[363863845,1748904662091,-150.0,0.0004002,120]
[363863846,1748904662101,-152.39521258,0.00040028,7]
[363863847,1748904662111,-14169.14891108,0.00040038,120]
[363863848,1748904662121,-1077.0,0.00040038,30]
[363863849,1748904662132,-1077.0,0.00040038,30]
[363863850,1748904662143,-883.70217433,0.00040038,30]
[363863851,1748904662154,-1077.0,0.00040038,30]
[363863852,1748904662164,-4707.64229754,0.00040038,2]
[363863853,1748904662175,-1000.0,0.00040038,60]
[363863854,1748904662186,-2000.0,0.00040038,31]
[363863855,1748904662197,-460.0,0.00040038,15]
[363863856,1748904662208,-460.0,0.00040038,15]
[363863857,1748904662219,-460.0,0.00040038,15]
[363863858,1748904662228,-318.11768331,0.00040038,15]
[363863859,1748904662238,-460.0,0.00040038,2]
[363863860,1748904662247,-460.0,0.00040038,2]
[363863861,1748904662257,-460.0,0.00040038,2]
[363863862,1748904662267,-460.0,0.00040038,2]
[363863863,1748904662277,-460.0,0.00040038,2]
[363863864,1748904662286,-460.0,0.00040038,2]
[363863865,1748904662296,-460.0,0.00040038,2]
[363863866,1748904662306,-460.0,0.00040038,2]
[363863867,1748904662315,-460.0,0.00040038,2]
[363863868,1748904662325,-608.80362446,0.00040038,2]
[363863869,1748904662336,-28409.19,0.00040038,7]
[363863870,1748904662346,-28409.19,0.00040038,7]
[363863871,1748904662355,-28409.19,0.00040038,7]
[363863872,1748904662365,-28409.19,0.00040038,7]
[363863873,1748904662374,-28409.19,0.00040038,7]
[363863874,1748904662384,-28409.19,0.00040038,7]
[363863875,1748904662393,-28409.19,0.00040038,7]
[363863876,1748904662403,-28409.19,0.00040038,7]
[363863877,1748904662413,-28409.19,0.00040038,7]
[363863878,1748904662423,-28409.19,0.00040038,7]
[363863879,1748904662432,-28409.19,0.00040038,7]
[363863880,1748904662442,-28409.19,0.00040038,7]
[363863881,1748904662452,-28409.19,0.00040038,7]
[363863882,1748904662461,-28409.19,0.00040038,7]
[363863883,1748904662471,-28409.19,0.00040038,7]
[363863884,1748904662480,-28409.19,0.00040038,7]
[363863885,1748904662491,-28409.19,0.00040038,7]
[363863886,1748904662500,-28409.19,0.00040038,7]
[363863887,1748904662510,-28409.19,0.00040038,7]
[363863888,1748904662520,-28409.19,0.00040038,7]
[363863889,1748904662530,-28409.19,0.00040038,7]
[363863890,1748904662539,-28409.19,0.00040038,7]
[363863891,1748904662549,-28409.19,0.00040038,7]
[363863892,1748904662559,-28409.3608,0.00040038,7]
[363863893,1748904662569,-380.0,0.00040038,7]
[363863894,1748904662579,-460.0,0.00040038,118]
[363863895,1748904662588,-460.0,0.00040038,118]
[363863896,1748904662598,-536.49,0.00040038,118]
[363863897,1748904662609,-420.0,0.00040038,30]
[363863898,1748904662620,-460.0,0.00040038,60]
[363863899,1748904662630,-380.0,0.00040038,60]
[363863900,1748904662639,-460.0,0.00040038,15]
[363863901,1748904662649,-460.0,0.00040038,15]
[363863902,1748904662659,-460.0,0.00040038,15]
[363863903,1748904662668,-460.0,0.00040038,15]
[363863904,1748904662678,-460.0,0.00040038,15]
[363863905,1748904662687,-487.97,0.00040038,15]
[363863906,1748904662697,-460.0,0.00040038,14]
[363863907,1748904662706,-460.0,0.00040038,14]
[363863908,1748904662715,-525.9,0.00040038,14]
[363863909,1748904662725,-420.0,0.00040038,8]
[363863910,1748904662736,-460.0,0.00040038,60]
[363863911,1748904662746,-460.0,0.00040038,60]
[363863912,1748904662755,-460.0,0.00040038,60]
[363863913,1748904662765,-460.0,0.00040038,60]
[363863914,1748904662775,-281.34,0.00040038,60]
[363863915,1748904662784,-460.0,0.00040038,7]
[363863916,1748904662793,-380.0,0.00040038,7]
[363863917,1748904662804,-5827.76612737,0.00040038,120]
[363863918,1748904662813,-651.32,0.00040038,120]
[363863919,1748904662823,-460.0,0.00040038,120]
[363863920,1748904662834,-758.43,0.00040038,120]
[363863921,1748904662844,-460.0,0.00040038,120]
[363863922,1748904662853,-651.32,0.00040038,120]
[363863923,1748904662863,-460.0,0.00040038,120]
[363863924,1748904662873,-758.43,0.00040038,120]
[363863925,1748904662882,-380.0,0.00040038,120]
[363863926,1748904662893,-651.32,0.00040038,120]
[363863927,1748904662903,-600.0,0.00040038,120]
[363863928,1748904662912,-758.43,0.00040038,120]
[363863929,1748904662922,-5951.63,0.00040038,120]
[363863930,1748904662931,-651.32,0.00040038,120]
[363863931,1748904662941,-758.43,0.00040038,120]
[363863932,1748904662951,-5951.63,0.00040038,120]
[363863933,1748904662960,-420.0,0.00040038,120]
[363863934,1748904662970,-420.0,0.00040038,120]
[363863935,1748904662980,-651.32,0.00040038,120]
[363863936,1748904662990,-758.43,0.00040038,120]
[363863937,1748904663001,-5951.63,0.00040038,120]
[363863938,1748904663011,-758.43,0.00040038,120]
[363863939,1748904663021,-5951.63,0.00040038,120]
[363863940,1748904663031,-758.43,0.00040038,120]
[363863941,1748904663041,-5951.63,0.00040038,120]
[363863942,1748904663050,-651.32,0.00040038,120]
[363863943,1748904663060,-758.43,0.00040038,120]
[363863944,1748904663070,-5951.63,0.00040038,120]
[363863945,1748904663080,-420.0,0.00040038,120]
[363863946,1748904663090,-651.32,0.00040038,120]
[363863947,1748904663100,-758.43,0.00040038,120]
[363863948,1748904663111,-5951.63,0.00040038,120]
[363863949,1748904663120,-651.32,0.00040038,120]
[363863950,1748904663130,-2446.72,0.00040038,120]
[363863951,1748904663140,-758.43,0.00040038,120]
[363863952,1748904663150,-5951.63,0.00040038,120]
[363863953,1748904663160,-651.32,0.00040038,120]
[363863954,1748904663170,-2446.72,0.00040038,120]
[363863955,1748904663180,-758.43,0.00040038,120]
[363863956,1748904663190,-5951.63,0.00040038,120]
[363863957,1748904663200,-651.32,0.00040038,120]
[363863958,1748904663209,-2446.72,0.00040038,120]
[363863959,1748904663219,-758.43,0.00040038,120]
[363863960,1748904663228,-5951.63,0.00040038,120]
[363863961,1748904663237,-651.32,0.00040038,120]
[363863962,1748904663247,-2446.72,0.00040038,120]
[363863963,1748904663256,-758.43,0.00040038,120]
[363863964,1748904663266,-420.0,0.00040038,120]
[363863965,1748904663276,-651.32,0.00040038,120]
[363863966,1748904663286,-5951.63,0.00040038,120]
[363863967,1748904663296,-758.43,0.00040038,120]
[363863968,1748904663306,-2446.72,0.00040038,120]
[363863969,1748904663316,-651.32,0.00040038,120]
[363863970,1748904663326,-758.43,0.00040038,120]
[363863971,1748904663339,-2446.72,0.00040038,120]
[363863972,1748904663349,-5951.63,0.00040038,120]
[363863973,1748904663359,-758.43,0.00040038,120]
[363863974,1748904663369,-2446.72,0.00040038,120]
[363863975,1748904663379,-758.43,0.00040038,120]
[363863976,1748904663389,-5951.63,0.00040038,120]
[363863977,1748904663399,-2446.72,0.00040038,120]
[363863978,1748904663410,-758.53,0.00040038,120]
[363863979,1748904663420,-5951.63,0.00040038,120]
[363863980,1748904663430,-2446.72,0.00040038,120]
[363863981,1748904663440,-5951.63,0.00040038,120]
[363863982,1748904663450,-460.0,0.00040038,120]
[363863983,1748904663460,-2446.72,0.00040038,120]
[363863984,1748904663470,-5951.79,0.00040038,120]
[363863985,1748904663480,-420.0,0.00040038,120]
[363863986,1748904663490,-460.0,0.00040038,120]
[363863987,1748904663500,-2446.72,0.00040038,120]
[363863988,1748904663510,-460.0,0.00040038,120]
[363863989,1748904663520,-2446.72,0.00040038,120]
[363863990,1748904663530,-424.4803648,0.00040038,120]
[363863991,1748904663541,-460.0,0.00040038,120]
[363863992,1748904663551,-2446.72,0.00040038,120]
[363863993,1748904663561,-460.0,0.00040038,120]
[363863994,1748904663572,-2446.72,0.00040038,120]
[363863995,1748904663584,-420.0,0.00040038,120]
[363863996,1748904663597,-651.32,0.00040038,120]
[363863997,1748904663608,-220.0,0.00040038,120]
[363863998,1748904663622,-420.0,0.00040038,5]
[363863999,1748904663633,-2446.72,0.00040038,120]
[363864000,1748904663645,-651.38023613,0.00040038,120]
[363864001,1748904663656,-420.0,0.00040038,120]
[363864002,1748904663667,-460.0,0.00040038,120]
[363864003,1748904663677,-2446.72,0.00040038,120]
[363864004,1748904663687,-2446.72,0.00040038,120]
[363864005,1748904663698,-541.92,0.00040038,120]
[363864006,1748904663708,-2446.72,0.00040038,120]
[363864007,1748904663718,-2446.72,0.00040038,120]
[363864008,1748904663728,-3554.14,0.00040038,120]
[363864009,1748904663738,-2446.72,0.00040038,120]
[363864010,1748904663748,-3554.14,0.00040038,120]
[363864011,1748904663759,-3554.14,0.00040038,120]
[363864012,1748904663770,-460.0,0.00040038,120]
[363864013,1748904663780,-298.75857089,0.00040038,120]
[363864014,1748904663791,-2446.72,0.00040038,120]
[363864015,1748904663801,-3554.14,0.00040038,120]
[363864016,1748904663812,-380.0,0.00040038,120]
[363864017,1748904663822,-2446.72,0.00040038,120]
[363864018,1748904663836,-460.0,0.00040038,120]
[363864019,1748904663846,-3554.14,0.00040038,120]
[363864020,1748904663856,-426.81929293,0.00040038,120]
[363864021,1748904663866,-2446.72,0.00040038,120]
[363864022,1748904663877,-380.0,0.00040038,120]
[363864023,1748904663887,-3554.14,0.00040038,120]
[363864024,1748904663897,-420.0,0.00040038,120]
[363864025,1748904663908,-3554.14,0.00040038,120]
[363864026,1748904663918,-2446.87,0.00040038,120]
[363864027,1748904663927,-3554.14,0.00040038,120]
[363864028,1748904663937,-3554.14,0.00040038,120]
[363864029,1748904663948,-411.9,0.00040038,120]
[363864030,1748904663958,-3554.14,0.00040038,120]
[363864031,1748904663967,-3554.14,0.00040038,120]
[363864032,1748904663977,-3554.14,0.00040038,120]
[363864033,1748904664183,-3554.14,0.00040038,120]
[363864034,1748904664195,-2312.73,0.00040038,120]
[363864035,1748904664206,-3554.14,0.00040038,120]
[363864036,1748904664216,-460.0,0.00040038,120]
[363864037,1748904664227,-2312.73,0.00040038,120]
[363864038,1748904664237,-3554.14,0.00040038,120]
[363864039,1748904664248,-380.0,0.00040038,120]
[363864040,1748904664258,-1788.94,0.00040038,120]
[363864041,1748904664268,-3554.14,0.00040038,120]
[363864042,1748904664279,-2312.73,0.00040038,120]
[363864043,1748904664289,-1788.94,0.00040038,120]
[363864044,1748904664299,-3554.14,0.00040038,120]
[363864045,1748904664310,-2312.73,0.00040038,120]
[363864046,1748904664320,-213.71597159,0.00040038,120]
[363864047,1748904664330,-1788.94,0.00040038,120]
[363864048,1748904664343,-3554.14,0.00040038,120]
[363864049,1748904664353,-460.0,0.00040038,120]
[363864050,1748904664364,-1788.94,0.00040038,120]